[Event "Early-Titled-Tuesday-Blitz-October-10-2023"]
[Site "Chess.com"]
[Date "2023.10.10"]
[Round "3"]
[White "Leonid_Starozhilov"]
[Black "lolo9292"]
[Result "1-0"]
[WhiteElo "2731"]
[BlackElo "2157"]
[TimeControl "180+1"]
[EndTime "8:25:05 PDT"]
[Termination "Leonid_Starozhilov won by resignation"]

1. b3 {[%clk 0:02:56.6]} 1... e5 {[%clk 0:02:58.9]} 2. Bb2 {[%clk 0:02:57]} 2...
d6 {[%clk 0:02:59.8]} 3. e3 {[%clk 0:02:57.3]} 3... Nf6 {[%clk 0:02:59.6]} 4. c4
{[%clk 0:02:57.3]} 4... Be7 {[%clk 0:02:59]} 5. Nc3 {[%clk 0:02:57.9]} 5... O-O
{[%clk 0:02:58.9]} 6. g3 {[%clk 0:02:57.5]} 6... Bg4 {[%clk 0:02:57.6]} 7. Be2
{[%clk 0:02:54.8]} 7... Bxe2 {[%clk 0:02:55.5]} 8. Ngxe2 {[%clk 0:02:55.2]} 8...
c5 {[%clk 0:02:53.8]} 9. O-O {[%clk 0:02:51.7]} 9... Nc6 {[%clk 0:02:53.4]} 10.
d3 {[%clk 0:02:51.5]} 10... Qd7 {[%clk 0:02:53.2]} 11. e4 {[%clk 0:02:47.6]}
11... Bd8 {[%clk 0:02:52.1]} 12. f3 {[%clk 0:02:47.2]} 12... Ba5 {[%clk
0:02:50.9]} 13. Nd5 {[%clk 0:02:47.1]} 13... Nd4 {[%clk 0:02:47.1]} 14. Nxf6+
{[%clk 0:02:46.8]} 14... gxf6 {[%clk 0:02:47.1]} 15. Bxd4 {[%clk 0:02:46.1]}
15... cxd4 {[%clk 0:02:46.5]} 16. f4 {[%clk 0:02:41.3]} 16... Qg4 {[%clk
0:02:43.5]} 17. Kg2 {[%clk 0:02:36.6]} 17... Rfc8 {[%clk 0:02:30.1]} 18. fxe5
{[%clk 0:02:35.8]} 18... fxe5 {[%clk 0:02:29.3]} 19. Rf5 {[%clk 0:02:28.2]}
19... Bd8 {[%clk 0:02:23.9]} 20. Qf1 {[%clk 0:02:26.3]} 20... Rc7 {[%clk
0:02:22.7]} 21. h3 {[%clk 0:02:22.6]} 21... Qg6 {[%clk 0:02:20]} 22. Qf3 {[%clk
0:02:21.3]} 22... a5 {[%clk 0:02:14.4]} 23. a4 {[%clk 0:02:20.8]} 23... Rd7
{[%clk 0:02:09.9]} 24. Rf1 {[%clk 0:02:20.8]} 24... Bg5 {[%clk 0:01:58.5]} 25.
g4 {[%clk 0:02:12.4]} 25... h5 {[%clk 0:01:52.5]} 26. gxh5 {[%clk 0:01:59.2]}
26... Qg7 {[%clk 0:01:46.9]} 27. Qg4 {[%clk 0:01:53.3]} 27... f6 {[%clk
0:01:36.1]} 28. Rxg5 {[%clk 0:01:33.7]} 28... fxg5 {[%clk 0:01:35]} 29. h6
{[%clk 0:01:32.7]} 29... Qxh6 {[%clk 0:01:33.3]} 30. Qxd7 {[%clk 0:01:31.8]} 1-0

[Event "Early-Titled-Tuesday-Blitz-October-10-2023"]
[Site "Chess.com"]
[Date "2023.10.10"]
[Round "3"]
[White "Alexander_Donchenko"]
[Black "ilm2034"]
[Result "1-0"]
[WhiteElo "2834"]
[BlackElo "2595"]
[TimeControl "180+1"]
[EndTime "8:25:06 PDT"]
[Termination "Alexander_Donchenko won by resignation"]

1. d4 {[%clk 0:03:00.9]} 1... Nf6 {[%clk 0:02:51.9]} 2. c4 {[%clk 0:03:01.5]}
2... e6 {[%clk 0:02:52]} 3. Nc3 {[%clk 0:03:02.2]} 3... d5 {[%clk 0:02:52.7]} 4.
cxd5 {[%clk 0:03:01.8]} 4... exd5 {[%clk 0:02:53.6]} 5. Bg5 {[%clk 0:03:01.7]}
5... Be7 {[%clk 0:02:51.9]} 6. e3 {[%clk 0:03:02]} 6... O-O {[%clk 0:02:51.6]}
7. Bd3 {[%clk 0:03:01.8]} 7... h6 {[%clk 0:02:50.5]} 8. Bf4 {[%clk 0:03:01.8]}
8... c5 {[%clk 0:02:47.4]} 9. Nf3 {[%clk 0:02:57.1]} 9... Nc6 {[%clk 0:02:45.8]}
10. dxc5 {[%clk 0:02:56.3]} 10... Bxc5 {[%clk 0:02:43.8]} 11. O-O {[%clk
0:02:56.4]} 11... Bg4 {[%clk 0:02:43.4]} 12. h3 {[%clk 0:02:55.4]} 12... Be6
{[%clk 0:02:42]} 13. Rc1 {[%clk 0:02:54.3]} 13... Rc8 {[%clk 0:02:40]} 14. Na4
{[%clk 0:02:52.9]} 14... Bd6 {[%clk 0:02:30.3]} 15. Bxd6 {[%clk 0:02:51.4]}
15... Qxd6 {[%clk 0:02:31.2]} 16. a3 {[%clk 0:02:48.2]} 16... Rfd8 {[%clk
0:02:29.2]} 17. Nc5 {[%clk 0:02:46.7]} 17... b6 {[%clk 0:02:22.5]} 18. Nb7
{[%clk 0:02:46.4]} 18... Qb8 {[%clk 0:02:03.7]} 19. Nxd8 {[%clk 0:02:46.3]}
19... Nxd8 {[%clk 0:02:04.2]} 20. Rxc8 {[%clk 0:02:45.4]} 20... Qxc8 {[%clk
0:02:05.1]} 21. Nd4 {[%clk 0:02:44.8]} 21... Qd7 {[%clk 0:02:02.3]} 22. Bb5
{[%clk 0:02:42.2]} 22... Qd6 {[%clk 0:02:01]} 23. Qc2 {[%clk 0:02:41.7]} 23...
Nb7 {[%clk 0:01:55.7]} 24. Rc1 {[%clk 0:02:39.9]} 24... Nc5 {[%clk 0:01:54.7]}
25. b4 {[%clk 0:02:39.7]} 25... Nce4 {[%clk 0:01:55.2]} 26. Nxe6 {[%clk
0:02:38.5]} 26... fxe6 {[%clk 0:01:51]} 27. Qc7 {[%clk 0:02:37.5]} 27... a5
{[%clk 0:01:41.8]} 28. bxa5 {[%clk 0:02:32.2]} 28... bxa5 {[%clk 0:01:39.3]} 29.
Qxd6 {[%clk 0:02:31.8]} 29... Nxd6 {[%clk 0:01:38.8]} 30. a4 {[%clk 0:02:32.1]}
30... Nfe4 {[%clk 0:01:37.1]} 31. Rc6 {[%clk 0:02:30.7]} 31... Nb7 {[%clk
0:01:09.1]} 32. Rxe6 {[%clk 0:02:29.9]} 32... Kf7 {[%clk 0:01:07.5]} 33. Ra6
{[%clk 0:02:28.8]} 33... Nec5 {[%clk 0:00:58]} 34. Ra7 {[%clk 0:02:28.8]} 34...
Kf6 {[%clk 0:00:58.3]} 35. Bc6 {[%clk 0:02:28.9]} 35... Nd6 {[%clk 0:00:58.6]}
36. Rxa5 {[%clk 0:02:28.2]} 36... Nb3 {[%clk 0:00:57.9]} 37. Rxd5 {[%clk
0:02:27.6]} 37... Nc4 {[%clk 0:00:56.2]} 38. Bb5 {[%clk 0:02:25.9]} 38... Nca5
{[%clk 0:00:55.4]} 39. f4 {[%clk 0:02:23.8]} 1-0

[Event "Early-Titled-Tuesday-Blitz-October-10-2023"]
[Site "Chess.com"]
[Date "2023.10.10"]
[Round "3"]
[White "crazy_but_lazy"]
[Black "Marcin"]
[Result "1-0"]
[WhiteElo "2624"]
[BlackElo "2448"]
[TimeControl "180+1"]
[EndTime "8:25:09 PDT"]
[Termination "crazy_but_lazy won by resignation"]

1. d4 {[%clk 0:03:00.9]} 1... d5 {[%clk 0:02:56.3]} 2. Nf3 {[%clk 0:03:00.7]}
2... Nf6 {[%clk 0:02:55.1]} 3. Bf4 {[%clk 0:03:00.8]} 3... c5 {[%clk 0:02:50.1]}
4. e3 {[%clk 0:03:00.6]} 4... Nc6 {[%clk 0:02:50.6]} 5. Nbd2 {[%clk 0:02:58.3]}
5... Qb6 {[%clk 0:02:49.3]} 6. dxc5 {[%clk 0:02:57.9]} 6... Qxb2 {[%clk
0:02:49.1]} 7. Rb1 {[%clk 0:02:36]} 7... Qc3 {[%clk 0:02:47.4]} 8. Bb5 {[%clk
0:02:27.8]} 8... g6 {[%clk 0:02:45.2]} 9. O-O {[%clk 0:02:27.4]} 9... Bg7 {[%clk
0:02:45]} 10. Nb3 {[%clk 0:02:27]} 10... O-O {[%clk 0:02:43.7]} 11. Bxc6 {[%clk
0:02:27.4]} 11... bxc6 {[%clk 0:02:44]} 12. Be5 {[%clk 0:02:27.9]} 12... Qc4
{[%clk 0:02:41.4]} 13. Nfd4 {[%clk 0:02:17.5]} 13... Bd7 {[%clk 0:02:38.2]} 14.
Qd3 {[%clk 0:02:09.9]} 14... Qa4 {[%clk 0:02:27.9]} 15. f3 {[%clk 0:01:52.5]}
15... Rfc8 {[%clk 0:02:23.4]} 16. Rb2 {[%clk 0:01:47.1]} 16... Be8 {[%clk
0:02:23]} 17. Rfb1 {[%clk 0:01:46.1]} 17... Nd7 {[%clk 0:02:23]} 18. Bxg7 {[%clk
0:01:46.2]} 18... Kxg7 {[%clk 0:02:23.9]} 19. e4 {[%clk 0:01:45]} 19... e5
{[%clk 0:02:16.1]} 20. Ne2 {[%clk 0:01:41.8]} 20... d4 {[%clk 0:02:14.3]} 21. c3
{[%clk 0:01:41.5]} 21... dxc3 {[%clk 0:02:00.1]} 22. Nxc3 {[%clk 0:01:42.4]}
22... Qa3 {[%clk 0:01:58]} 23. Qc4 {[%clk 0:01:33.9]} 23... f6 {[%clk 0:01:50]}
24. Rd2 {[%clk 0:01:28.8]} 24... Rc7 {[%clk 0:01:48.4]} 25. Rbd1 {[%clk
0:01:27.7]} 25... a5 {[%clk 0:01:43.1]} 26. Qe6 {[%clk 0:01:23.7]} 26... Nxc5
{[%clk 0:01:38.9]} 27. Qd6 {[%clk 0:01:23.7]} 1-0

[Event "Early-Titled-Tuesday-Blitz-October-10-2023"]
[Site "Chess.com"]
[Date "2023.10.10"]
[Round "3"]
[White "GAusal"]
[Black "GlavkonVVS"]
[Result "0-1"]
[WhiteElo "2290"]
[BlackElo "2557"]
[TimeControl "180+1"]
[EndTime "8:25:09 PDT"]
[Termination "GlavkonVVS won by resignation"]

1. d4 {[%clk 0:03:00.9]} 1... Nf6 {[%clk 0:02:58.3]} 2. Nf3 {[%clk 0:02:59.6]}
2... c5 {[%clk 0:02:58.6]} 3. e3 {[%clk 0:02:57.3]} 3... e6 {[%clk 0:02:58.7]}
4. c3 {[%clk 0:02:54.9]} 4... d5 {[%clk 0:02:58.1]} 5. Bd3 {[%clk 0:02:53.2]}
5... Nc6 {[%clk 0:02:58.7]} 6. Ne5 {[%clk 0:02:53.2]} 6... Bd6 {[%clk
0:02:49.3]} 7. f4 {[%clk 0:02:52.5]} 7... Qc7 {[%clk 0:02:45.8]} 8. O-O {[%clk
0:02:50.7]} 8... O-O {[%clk 0:02:45.3]} 9. Qf3 {[%clk 0:02:45.8]} 9... Ne7
{[%clk 0:02:44.6]} 10. Qh3 {[%clk 0:02:41.9]} 10... Ne4 {[%clk 0:02:40.4]} 11.
Nd2 {[%clk 0:02:36.9]} 11... f5 {[%clk 0:02:38.1]} 12. Ndf3 {[%clk 0:02:31.5]}
12... Rf6 {[%clk 0:02:26.7]} 13. Qh4 {[%clk 0:02:12.8]} 13... Rh6 {[%clk
0:02:12.2]} 14. Qe1 {[%clk 0:02:11.7]} 14... b6 {[%clk 0:02:11.8]} 15. h3 {[%clk
0:02:11.3]} 15... Bb7 {[%clk 0:02:08.8]} 16. Ng5 {[%clk 0:02:08.7]} 16... Rf6
{[%clk 0:01:52.3]} 17. Nxe4 {[%clk 0:02:05.4]} 17... fxe4 {[%clk 0:01:50.5]} 18.
Be2 {[%clk 0:02:05.8]} 18... Raf8 {[%clk 0:01:45.6]} 19. Kh1 {[%clk 0:02:03.5]}
19... Qc8 {[%clk 0:01:34.8]} 20. Bd2 {[%clk 0:02:02.5]} 20... Ba6 {[%clk
0:01:34.7]} 21. Bxa6 {[%clk 0:02:01.1]} 21... Qxa6 {[%clk 0:01:32.7]} 22. Qg3
{[%clk 0:02:00.1]} 22... Bxe5 {[%clk 0:01:29]} 23. dxe5 {[%clk 0:01:58.2]} 23...
Rg6 {[%clk 0:01:28.1]} 24. Qf2 {[%clk 0:01:57.2]} 24... h5 {[%clk 0:01:25.8]}
25. g3 {[%clk 0:01:55.4]} 25... Nf5 {[%clk 0:01:24.7]} 26. Rg1 {[%clk
0:01:53.5]} 26... Kf7 {[%clk 0:01:13.6]} 27. g4 {[%clk 0:01:53.3]} 27... hxg4
{[%clk 0:01:13.3]} 28. hxg4 {[%clk 0:01:53]} 28... Rh8+ {[%clk 0:01:13]} 29. Kg2
{[%clk 0:01:50]} 29... Rxg4+ {[%clk 0:01:13.1]} 0-1

[Event "Early-Titled-Tuesday-Blitz-October-10-2023"]
[Site "Chess.com"]
[Date "2023.10.10"]
[Round "3"]
[White "BigAl"]
[Black "PeshkaCh"]
[Result "0-1"]
[WhiteElo "2597"]
[BlackElo "2828"]
[TimeControl "180+1"]
[EndTime "8:25:16 PDT"]
[Termination "PeshkaCh won by resignation"]

1. Nf3 {[%clk 0:02:58.4]} 1... Nf6 {[%clk 0:03:00.2]} 2. g3 {[%clk 0:02:58.5]}
2... c5 {[%clk 0:02:59.1]} 3. Bg2 {[%clk 0:02:59.4]} 3... g6 {[%clk 0:02:59.8]}
4. O-O {[%clk 0:03:00.3]} 4... Bg7 {[%clk 0:03:00.5]} 5. d3 {[%clk 0:03:01.2]}
5... d5 {[%clk 0:03:00.4]} 6. Nbd2 {[%clk 0:02:50.7]} 6... O-O {[%clk
0:03:00.9]} 7. e3 {[%clk 0:02:51.6]} 7... Nc6 {[%clk 0:03:01]} 8. e4 {[%clk
0:02:46.8]} 8... Bg4 {[%clk 0:02:50.5]} 9. h3 {[%clk 0:02:46.4]} 9... Bxf3
{[%clk 0:02:50.7]} 10. Qxf3 {[%clk 0:02:47.3]} 10... dxe4 {[%clk 0:02:48.6]} 11.
dxe4 {[%clk 0:02:39.8]} 11... Qc7 {[%clk 0:02:47.5]} 12. Qe2 {[%clk 0:02:34]}
12... Nd4 {[%clk 0:02:46]} 13. Qd1 {[%clk 0:02:34.6]} 13... Rad8 {[%clk
0:02:45.9]} 14. c3 {[%clk 0:02:35.4]} 14... Nc6 {[%clk 0:02:42.3]} 15. f4 {[%clk
0:02:34.3]} 15... e5 {[%clk 0:02:15.7]} 16. f5 {[%clk 0:02:27.8]} 16... Bh6
{[%clk 0:02:15.8]} 17. Qe2 {[%clk 0:02:25.7]} 17... Nh5 {[%clk 0:02:14.7]} 18.
Qf2 {[%clk 0:02:23.9]} 18... Nxg3 {[%clk 0:01:50.3]} 19. Qxg3 {[%clk 0:02:06.7]}
19... Bxd2 {[%clk 0:01:50.6]} 20. Bxd2 {[%clk 0:02:03.4]} 20... Rxd2 {[%clk
0:01:51.5]} 21. Qg5 {[%clk 0:02:03.2]} 21... Qd8 {[%clk 0:01:42.5]} 22. f6
{[%clk 0:02:00.1]} 22... Kh8 {[%clk 0:01:42.4]} 23. Bf3 {[%clk 0:01:46.8]} 23...
Qd3 {[%clk 0:01:24.4]} 24. b4 {[%clk 0:01:32.5]} 24... cxb4 {[%clk 0:01:23.1]}
25. cxb4 {[%clk 0:01:31.8]} 25... Nd4 {[%clk 0:01:23.7]} 26. Bg4 {[%clk
0:01:28]} 26... Qg3+ {[%clk 0:01:22.4]} 0-1

[Event "Early-Titled-Tuesday-Blitz-October-10-2023"]
[Site "Chess.com"]
[Date "2023.10.10"]
[Round "3"]
[White "WelshTiger"]
[Black "JiiHart"]
[Result "1-0"]
[WhiteElo "2401"]
[BlackElo "2181"]
[TimeControl "180+1"]
[EndTime "8:25:18 PDT"]
[Termination "WelshTiger won by resignation"]

1. d4 {[%clk 0:03:00.9]} 1... d5 {[%clk 0:02:59.4]} 2. Nf3 {[%clk 0:02:58.9]}
2... Nf6 {[%clk 0:02:59]} 3. Bg5 {[%clk 0:02:57.8]} 3... Bg4 {[%clk 0:02:57.5]}
4. Nbd2 {[%clk 0:02:54.3]} 4... Nbd7 {[%clk 0:02:56]} 5. h3 {[%clk 0:02:53.4]}
5... Bf5 {[%clk 0:02:43.9]} 6. e3 {[%clk 0:02:52]} 6... h6 {[%clk 0:02:41]} 7.
Bh4 {[%clk 0:02:51.1]} 7... e6 {[%clk 0:02:39.1]} 8. Bd3 {[%clk 0:02:50.2]} 8...
Bxd3 {[%clk 0:02:30.8]} 9. cxd3 {[%clk 0:02:51.1]} 9... c5 {[%clk 0:02:31.1]}
10. O-O {[%clk 0:02:42.9]} 10... cxd4 {[%clk 0:02:27.9]} 11. Nxd4 {[%clk
0:02:43.1]} 11... a6 {[%clk 0:02:23.2]} 12. N2f3 {[%clk 0:02:41.3]} 12... Bd6
{[%clk 0:02:21.1]} 13. e4 {[%clk 0:02:40.4]} 13... Qb8 {[%clk 0:01:59]} 14. Bxf6
{[%clk 0:02:28.5]} 14... Nxf6 {[%clk 0:01:56.8]} 15. Re1 {[%clk 0:02:28.9]}
15... Bc7 {[%clk 0:01:06.1]} 16. Rc1 {[%clk 0:01:59.6]} 16... O-O {[%clk
0:01:04.9]} 17. Qb3 {[%clk 0:01:58.7]} 17... b5 {[%clk 0:01:01.3]} 18. Nc6
{[%clk 0:01:56.3]} 18... Qb7 {[%clk 0:00:54.8]} 19. Ne7+ {[%clk 0:01:45.4]}
19... Kh7 {[%clk 0:00:51]} 20. exd5 {[%clk 0:01:46.3]} 20... Nxd5 {[%clk
0:00:48.5]} 21. Nxd5 {[%clk 0:01:46]} 21... Qxd5 {[%clk 0:00:47.5]} 22. Qxd5
{[%clk 0:01:45.1]} 22... exd5 {[%clk 0:00:47.8]} 23. Rxc7 {[%clk 0:01:45.3]} 1-0

[Event "Early-Titled-Tuesday-Blitz-October-10-2023"]
[Site "Chess.com"]
[Date "2023.10.10"]
[Round "3"]
[White "SALVA-DALI"]
[Black "RCone"]
[Result "1-0"]
[WhiteElo "2734"]
[BlackElo "2491"]
[TimeControl "180+1"]
[EndTime "8:25:22 PDT"]
[Termination "SALVA-DALI won by checkmate"]

1. e4 {[%clk 0:03:00.9]} 1... d6 {[%clk 0:03:00.9]} 2. Nc3 {[%clk 0:03:00.7]}
2... Nf6 {[%clk 0:03:01.1]} 3. g3 {[%clk 0:03:01.3]} 3... g6 {[%clk 0:03:01.1]}
4. Bg2 {[%clk 0:03:02.1]} 4... Bg7 {[%clk 0:03:01.7]} 5. Nge2 {[%clk 0:03:03]}
5... O-O {[%clk 0:03:01.8]} 6. O-O {[%clk 0:03:03.9]} 6... e5 {[%clk 0:03:01.9]}
7. d3 {[%clk 0:03:04.8]} 7... Nc6 {[%clk 0:02:55.4]} 8. h3 {[%clk 0:03:05.7]}
8... h6 {[%clk 0:02:49.8]} 9. f4 {[%clk 0:03:05.5]} 9... exf4 {[%clk 0:02:47.5]}
10. Nxf4 {[%clk 0:03:03.8]} 10... Bd7 {[%clk 0:02:37.1]} 11. Be3 {[%clk
0:03:03.7]} 11... Ne5 {[%clk 0:02:30]} 12. Kh2 {[%clk 0:03:03.6]} 12... c6
{[%clk 0:02:21.8]} 13. Qd2 {[%clk 0:03:03.8]} 13... Qc7 {[%clk 0:02:07.9]} 14.
b3 {[%clk 0:03:04.1]} 14... Rad8 {[%clk 0:02:03]} 15. d4 {[%clk 0:03:03.6]}
15... Neg4+ {[%clk 0:01:56.4]} 16. hxg4 {[%clk 0:03:03.5]} 16... Nxg4+ {[%clk
0:01:57.3]} 17. Kg1 {[%clk 0:03:04.2]} 17... Nxe3 {[%clk 0:01:54.5]} 18. Qxe3
{[%clk 0:03:03.3]} 18... b5 {[%clk 0:01:50.9]} 19. Nce2 {[%clk 0:03:03]} 19...
Rde8 {[%clk 0:01:41.8]} 20. c3 {[%clk 0:03:03]} 20... Qb6 {[%clk 0:01:33.2]} 21.
b4 {[%clk 0:03:02.1]} 21... Bg4 {[%clk 0:01:23.4]} 22. Bf3 {[%clk 0:03:01.1]}
22... Bc8 {[%clk 0:01:21.4]} 23. Kg2 {[%clk 0:02:57.9]} 23... a5 {[%clk
0:01:20.5]} 24. a3 {[%clk 0:02:57.6]} 24... Bb7 {[%clk 0:01:18.8]} 25. Qf2
{[%clk 0:02:56.4]} 25... Qc7 {[%clk 0:01:16.6]} 26. Nd3 {[%clk 0:02:53.6]} 26...
a4 {[%clk 0:01:11.9]} 27. Nef4 {[%clk 0:02:53.3]} 27... Bc8 {[%clk 0:01:06.2]}
28. Rae1 {[%clk 0:02:51.7]} 28... Bd7 {[%clk 0:00:58.4]} 29. Rh1 {[%clk
0:02:51.5]} 29... h5 {[%clk 0:00:56.3]} 30. Qe2 {[%clk 0:02:50.9]} 30... Qc8
{[%clk 0:00:55.6]} 31. Bxh5 {[%clk 0:02:51]} 31... gxh5 {[%clk 0:00:51.9]} 32.
Qxh5 {[%clk 0:02:51.6]} 32... f6 {[%clk 0:00:43.7]} 33. Qh7+ {[%clk 0:02:50.4]}
33... Kf7 {[%clk 0:00:43.4]} 34. Qg6+ {[%clk 0:02:51.3]} 34... Kg8 {[%clk
0:00:41.9]} 35. Rh7 {[%clk 0:02:52]} 35... Re7 {[%clk 0:00:37.9]} 36. Reh1
{[%clk 0:02:52]} 36... Bh3+ {[%clk 0:00:25.7]} 37. R1xh3 {[%clk 0:02:52]} 37...
Qxh3+ {[%clk 0:00:25.1]} 38. Nxh3 {[%clk 0:02:52.5]} 38... f5 {[%clk 0:00:19.6]}
39. Ng5 {[%clk 0:02:52.6]} 39... Rf6 {[%clk 0:00:15.4]} 40. Rh8+ {[%clk
0:02:53.1]} 40... Kxh8 {[%clk 0:00:13.6]} 41. Qh7# {[%clk 0:02:54]} 1-0

[Event "Early-Titled-Tuesday-Blitz-October-10-2023"]
[Site "Chess.com"]
[Date "2023.10.10"]
[Round "3"]
[White "juancruzarias"]
[Black "kleopl"]
[Result "1-0"]
[WhiteElo "2634"]
[BlackElo "2456"]
[TimeControl "180+1"]
[EndTime "8:25:22 PDT"]
[Termination "juancruzarias won by resignation"]

1. d4 {[%clk 0:03:00.9]} 1... Nf6 {[%clk 0:02:59.1]} 2. Nf3 {[%clk 0:03:01.3]}
2... e6 {[%clk 0:02:58.3]} 3. e3 {[%clk 0:03:01.6]} 3... c5 {[%clk 0:02:57.7]}
4. Bd3 {[%clk 0:03:01.9]} 4... Nc6 {[%clk 0:02:56]} 5. O-O {[%clk 0:03:02]} 5...
b6 {[%clk 0:02:56.4]} 6. c4 {[%clk 0:03:01.5]} 6... Bb7 {[%clk 0:02:55.2]} 7.
Nc3 {[%clk 0:03:01.8]} 7... cxd4 {[%clk 0:02:53.6]} 8. exd4 {[%clk 0:03:01.5]}
8... d5 {[%clk 0:02:54]} 9. cxd5 {[%clk 0:03:01]} 9... Nxd5 {[%clk 0:02:54.9]}
10. Nxd5 {[%clk 0:02:57.9]} 10... Qxd5 {[%clk 0:02:54.4]} 11. Re1 {[%clk
0:02:54.6]} 11... Bb4 {[%clk 0:02:44.7]} 12. Be4 {[%clk 0:02:53]} 12... Qd7
{[%clk 0:02:41.8]} 13. Bd2 {[%clk 0:02:47.8]} 13... Bxd2 {[%clk 0:02:40.1]} 14.
Qxd2 {[%clk 0:02:48.7]} 14... O-O {[%clk 0:02:35.4]} 15. Rad1 {[%clk 0:02:49.2]}
15... Ne7 {[%clk 0:02:28.9]} 16. Ne5 {[%clk 0:02:48.9]} 16... Qc8 {[%clk
0:01:44.4]} 17. Rc1 {[%clk 0:02:46.6]} 17... Bxe4 {[%clk 0:01:39.6]} 18. Rxc8
{[%clk 0:02:45.5]} 18... Raxc8 {[%clk 0:01:39.8]} 19. Rxe4 {[%clk 0:02:44.9]}
19... Nd5 {[%clk 0:01:40]} 20. Re1 {[%clk 0:02:37.9]} 20... a5 {[%clk
0:01:32.3]} 21. Rc1 {[%clk 0:02:35.6]} 21... Nb4 {[%clk 0:01:32.5]} 22. a3
{[%clk 0:02:32.5]} 22... Nd5 {[%clk 0:01:32.5]} 23. g3 {[%clk 0:02:31.4]} 23...
h5 {[%clk 0:01:26.5]} 24. h4 {[%clk 0:02:30.2]} 24... g6 {[%clk 0:01:26.1]} 25.
Rc2 {[%clk 0:02:28.4]} 25... Ne7 {[%clk 0:01:19.3]} 26. Qc1 {[%clk 0:02:23]}
26... Rxc2 {[%clk 0:01:19.1]} 27. Qxc2 {[%clk 0:02:19.9]} 27... Rc8 {[%clk
0:01:19.3]} 28. Qd2 {[%clk 0:02:14.7]} 28... Nd5 {[%clk 0:01:19.3]} 29. Kg2
{[%clk 0:02:15]} 29... Kg7 {[%clk 0:01:17]} 30. Nd3 {[%clk 0:02:10.8]} 30... Rc7
{[%clk 0:01:15.6]} 31. Nf4 {[%clk 0:02:10.9]} 31... Nf6 {[%clk 0:01:07.3]} 32.
Qe2 {[%clk 0:02:08.3]} 32... Rd7 {[%clk 0:01:04.1]} 33. Qe5 {[%clk 0:02:03.4]}
33... Rd8 {[%clk 0:01:03.4]} 34. f3 {[%clk 0:02:01.8]} 34... Rd7 {[%clk
0:01:01.7]} 35. g4 {[%clk 0:02:01.3]} 1-0

[Event "Early-Titled-Tuesday-Blitz-October-10-2023"]
[Site "Chess.com"]
[Date "2023.10.10"]
[Round "3"]
[White "JesseFebruary"]
[Black "carloseduar100"]
[Result "0-1"]
[WhiteElo "2063"]
[BlackElo "2334"]
[TimeControl "180+1"]
[EndTime "8:25:34 PDT"]
[Termination "carloseduar100 won by resignation"]

1. e4 {[%clk 0:03:00.9]} 1... e6 {[%clk 0:02:58.5]} 2. d4 {[%clk 0:03:00.8]}
2... d5 {[%clk 0:02:57.8]} 3. exd5 {[%clk 0:02:56.4]} 3... exd5 {[%clk
0:02:57.4]} 4. Bd3 {[%clk 0:02:57]} 4... Bd6 {[%clk 0:02:56.5]} 5. Nc3 {[%clk
0:02:57]} 5... Ne7 {[%clk 0:02:55.9]} 6. Nge2 {[%clk 0:02:54.2]} 6... Nbc6
{[%clk 0:02:53.5]} 7. Be3 {[%clk 0:02:49.9]} 7... O-O {[%clk 0:02:53.9]} 8. h4
{[%clk 0:02:48.3]} 8... Re8 {[%clk 0:02:54.1]} 9. h5 {[%clk 0:02:47.1]} 9... Bf5
{[%clk 0:02:54.3]} 10. Qd2 {[%clk 0:02:36.3]} 10... Bxd3 {[%clk 0:02:48.6]} 11.
Qxd3 {[%clk 0:02:37.2]} 11... a6 {[%clk 0:02:48.1]} 12. g4 {[%clk 0:02:36.2]}
12... Qd7 {[%clk 0:02:48]} 13. O-O-O {[%clk 0:02:29.9]} 13... Qxg4 {[%clk
0:02:45.9]} 14. h6 {[%clk 0:02:20]} 14... g6 {[%clk 0:02:44.3]} 15. Rdg1 {[%clk
0:02:17.3]} 15... Qf5 {[%clk 0:02:44.5]} 16. Qd2 {[%clk 0:02:16.6]} 16... b5
{[%clk 0:02:31.3]} 17. Rg5 {[%clk 0:02:16.2]} 17... Qd7 {[%clk 0:02:31.5]} 18.
f4 {[%clk 0:02:14.5]} 18... Nf5 {[%clk 0:02:28.3]} 19. Bf2 {[%clk 0:01:59]}
19... b4 {[%clk 0:01:50.9]} 20. Nxd5 {[%clk 0:01:57.4]} 20... Qe6 {[%clk
0:01:50.9]} 21. Ne3 {[%clk 0:01:47.9]} 21... Nxe3 {[%clk 0:01:47.6]} 22. f5
{[%clk 0:01:28.5]} 22... Nxf5 {[%clk 0:01:43.7]} 23. Nf4 {[%clk 0:01:11.6]}
23... Qe4 {[%clk 0:01:40.9]} 24. Nd3 {[%clk 0:00:53.5]} 24... Qxh1+ {[%clk
0:01:38.9]} 0-1

[Event "Early-Titled-Tuesday-Blitz-October-10-2023"]
[Site "Chess.com"]
[Date "2023.10.10"]
[Round "3"]
[White "boasovietica"]
[Black "Msb2"]
[Result "0-1"]
[WhiteElo "2523"]
[BlackElo "3068"]
[TimeControl "180+1"]
[EndTime "8:25:38 PDT"]
[Termination "Msb2 won by resignation"]

1. d4 {[%clk 0:02:59.6]} 1... d5 {[%clk 0:03:00.3]} 2. c4 {[%clk 0:02:59.2]}
2... e6 {[%clk 0:03:00.9]} 3. Nc3 {[%clk 0:02:59.7]} 3... Bb4 {[%clk 0:03:01.5]}
4. cxd5 {[%clk 0:02:58.4]} 4... exd5 {[%clk 0:03:02.4]} 5. Nf3 {[%clk
0:02:57.8]} 5... Nf6 {[%clk 0:03:02.5]} 6. Bg5 {[%clk 0:02:54.2]} 6... O-O
{[%clk 0:03:02.9]} 7. e3 {[%clk 0:02:54.8]} 7... h6 {[%clk 0:03:03.1]} 8. Bxf6
{[%clk 0:02:54.9]} 8... Qxf6 {[%clk 0:03:04]} 9. Bd3 {[%clk 0:02:55]} 9... c6
{[%clk 0:03:04.1]} 10. O-O {[%clk 0:02:50.9]} 10... Bg4 {[%clk 0:03:04.3]} 11.
Be2 {[%clk 0:02:50.7]} 11... Bd6 {[%clk 0:03:01.7]} 12. h3 {[%clk 0:02:44.9]}
12... Bh5 {[%clk 0:03:01.4]} 13. Nh2 {[%clk 0:02:32.8]} 13... Bxe2 {[%clk
0:02:59.8]} 14. Qxe2 {[%clk 0:02:32.3]} 14... Nd7 {[%clk 0:03:00.5]} 15. Nf3
{[%clk 0:02:29.1]} 15... Qe6 {[%clk 0:02:59.6]} 16. Rab1 {[%clk 0:02:25.6]}
16... f5 {[%clk 0:02:58.2]} 17. b4 {[%clk 0:02:19.5]} 17... a6 {[%clk
0:02:57.7]} 18. a4 {[%clk 0:02:19.4]} 18... Nf6 {[%clk 0:02:55.3]} 19. b5 {[%clk
0:02:15.9]} 19... axb5 {[%clk 0:02:56.2]} 20. axb5 {[%clk 0:02:15.9]} 20... Ra3
{[%clk 0:02:57.1]} 21. Qc2 {[%clk 0:02:09.9]} 21... Ne4 {[%clk 0:02:54.5]} 22.
Rb3 {[%clk 0:02:06.5]} 22... Rxb3 {[%clk 0:02:40.8]} 23. Qxb3 {[%clk 0:02:06.5]}
23... f4 {[%clk 0:02:41.4]} 24. Nxe4 {[%clk 0:01:37.3]} 24... Qxe4 {[%clk
0:02:42.3]} 25. Nd2 {[%clk 0:01:35.8]} 25... Qg6 {[%clk 0:02:38.6]} 26. e4
{[%clk 0:01:28.7]} 26... f3 {[%clk 0:02:39.2]} 27. Nxf3 {[%clk 0:01:28.4]} 27...
Qxe4 {[%clk 0:02:39.7]} 28. Re1 {[%clk 0:01:27.3]} 28... Rxf3 {[%clk 0:02:38.9]}
29. Qd1 {[%clk 0:01:18.3]} 29... Rd3 {[%clk 0:02:37.2]} 30. Qb1 {[%clk
0:01:05.7]} 30... Rb3 {[%clk 0:02:09.5]} 31. Qd1 {[%clk 0:00:55.4]} 31... Qd3
{[%clk 0:02:04.8]} 32. Qg4 {[%clk 0:00:52.8]} 32... Rb1 {[%clk 0:01:59.8]} 33.
Qe6+ {[%clk 0:00:45.5]} 33... Kh7 {[%clk 0:01:59.3]} 0-1